bitfinex-derivatives/quotes_BTCF0:USTF0_20250329
["timestamp","ask_amount","ask_price","bid_price","bid_amount"]
[1743285381972,0.0327,82643.0,82642.0,0.1842698]
[1743285383263,0.0327,82643.0,82642.0,0.5450698]
[1743285383463,0.0327,82643.0,82642.0,0.6631498]
[1743285383965,0.0327,82643.0,82642.0,0.6641498]
[1743285385073,0.0654,82643.0,82642.0,0.6641498]
[1743285386472,0.0654,82643.0,82642.0,0.3033498]
[1743285386670,0.0654,82643.0,82642.0,0.6641498]
[1743285387972,0.0654,82643.0,82642.0,0.6651498]
[1743285388170,0.0654,82643.0,82642.0,0.6661498]
[1743285388571,0.0654,82643.0,82642.0,0.6651498]
[1743285390276,0.0303,82649.0,82646.0,0.0605213]
[1743285390466,0.0303,82649.0,82648.0,0.121041]
[1743285390667,0.0303,82649.0,82648.0,0.122681]
[1743285390868,0.0303,82649.0,82648.0,0.186181]
[1743285392776,0.0303,82649.0,82648.0,0.19822774]
[1743285393777,0.0303,82649.0,82648.0,0.55902774]
[1743285397474,0.0303,82649.0,82648.0,0.19822774]
[1743285397674,0.0303,82649.0,82648.0,0.55902774]
[1743285397873,0.0303,82649.0,82648.0,0.56002774]
[1743285398484,0.0303,82649.0,82648.0,0.56202774]
[1743285400176,0.0303,82649.0,82648.0,0.56102774]
[1743285400377,0.0319,82654.0,82653.0,0.1210337]
[1743285400579,0.0634,82654.0,82653.0,0.1226737]
[1743285401277,0.1844322,82654.0,82653.0,0.1546737]
[1743285401684,0.2173322,82654.0,82653.0,0.1226737]
[1743285402576,0.2173322,82654.0,82653.0,0.1534737]
[1743285425119,0.2173322,82654.0,82653.0,0.1852737]
[1743285428024,0.36255738,82654.0,82653.0,0.1852737]
[1743285430224,0.33065738,82654.0,82653.0,0.1852737]
[1743285431931,0.2168322,82654.0,82653.0,0.40277901]
[1743285437626,0.1854322,82654.0,82653.0,0.40277901]
[1743285438532,0.1210322,82654.0,82653.0,0.40277901]
[1743285439236,0.1210322,82654.0,82653.0,0.1852737]
[1743285439831,0.30239995,82657.0,82656.0,0.1210293]
[1743285440230,0.30239995,82657.0,82656.0,0.1227093]
[1743285440627,0.30239995,82657.0,82656.0,0.1210293]
[1743285440828,0.31156498,82657.0,82656.0,0.1210293]
[1743285443240,0.13019433,82657.0,82656.0,0.1210293]
[1743285443730,0.13019433,82657.0,82656.0,0.1831293]
[1743285445435,0.13019433,82657.0,82656.0,0.1847693]
[1743285446636,0.27542101,82657.0,82656.0,0.1847693]
[1743285448839,0.14522668,82657.0,82656.0,0.3027693]
[1743285453038,0.14522668,82657.0,82656.0,0.6635693]
[1743285454041,0.14516174,82663.0,82656.0,0.6030544]
[1743285454339,0.14516174,82663.0,82662.0,0.1210205]
[1743285454542,0.14516174,82663.0,82662.0,0.1227405]
[1743285455140,0.14516174,82663.0,82662.0,0.5441405]
[1743285458340,0.1210135,82667.0,82666.0,0.1210146]
[1743285458549,0.1210135,82667.0,82666.0,0.1226546]
[1743285458747,0.19156736,82669.0,82668.0,0.1210117]
[1743285458953,0.19156736,82669.0,82668.0,0.1227317]
[1743285462341,0.1511111,82669.0,82668.0,0.1227317]
[1743285463751,0.1511111,82669.0,82668.0,0.4835317]
[1743285465544,0.1511111,82669.0,82668.0,0.1227317]
[1743285465751,0.1511111,82669.0,82668.0,0.4835317]
[1743285467547,0.1511111,82669.0,82668.0,0.1227317]
[1743285467751,0.1511111,82669.0,82668.0,0.4835317]
[1743285469558,0.1511111,82669.0,82668.0,0.1227317]
[1743285469858,0.1511111,82669.0,82668.0,0.4835317]
[1743285471553,0.16068447,82673.0,82672.0,0.1210059]
[1743285471746,0.19308447,82673.0,82672.0,0.1226459]
[1743285472956,0.22638447,82673.0,82672.0,0.1226459]
[1743285478756,0.22638447,82673.0,82672.0,0.1530459]
[1743285483456,0.22638447,82673.0,82672.0,0.00164]
[1743285483657,0.58718447,82673.0,82672.0,0.00164]
[1743285484767,0.70814367,82673.0,82672.0,0.00164]
[1743285485066,0.121019,82663.0,82662.0,0.29001292]
[1743285485261,0.89213901,82663.0,82662.0,0.00116]
[1743285485457,0.1210307,82655.0,82654.0,0.36196602]
[1743285485652,0.4826707,82655.0,82654.0,0.36276602]
[1743285486455,0.49502413,82655.0,82654.0,0.36276602]
[1743285488864,0.49502413,82655.0,82654.0,0.0008]
[1743285489057,0.1210337,82653.0,82652.0,0.0332]
[1743285489257,0.1210351,82652.0,82651.0,0.00018147]
[1743285489459,0.1836551,82652.0,82651.0,0.00018147]
[1743285491355,0.1836551,82652.0,82651.0,0.12121807]
[1743285491862,0.1836551,82652.0,82651.0,0.12201807]
[1743285493667,0.1217551,82652.0,82651.0,0.12201807]
[1743285493867,0.00072,82652.0,82651.0,0.12201807]
[1743285494169,0.1217551,82652.0,82651.0,0.12201807]
[1743285494563,0.1217551,82652.0,82651.0,0.00098147]
[1743285494766,0.1217551,82652.0,82651.0,0.00018147]
[1743285494963,0.1866551,82652.0,82651.0,0.00018147]
[1743285495165,0.1866551,82652.0,82651.0,0.12121807]
[1743285495365,0.1866551,82652.0,82651.0,0.15211807]
[1743285495667,0.1866551,82652.0,82651.0,0.15291807]
[1743285499573,0.1866551,82652.0,82651.0,0.03108147]
[1743285500369,0.1866551,82652.0,82651.0,0.00018147]
[1743285500571,0.71372993,82652.0,82642.0,0.0311]
[1743285500773,0.1210483,82643.0,82642.0,0.0319]
[1743285501073,0.1210571,82637.0,82636.0,0.21754006]
[1743285501275,0.1217371,82637.0,82636.0,0.21818006]
[1743285502069,0.1852371,82637.0,82636.0,0.21818006]
[1743285502671,0.1822371,82637.0,82636.0,0.21818006]
[1743285503267,0.1822371,82637.0,82636.0,0.22118006]
[1743285503469,0.1822371,82637.0,82636.0,0.22418006]
[1743285503667,0.1822371,82637.0,82636.0,0.25458006]
[1743285505276,0.1822371,82637.0,82636.0,0.03704]
[1743285505576,0.1822371,82637.0,82636.0,0.07014]
[1743285507473,0.1822371,82637.0,82636.0,0.0695]
[1743285510578,0.1822371,82637.0,82636.0,0.07014]
[1743285510972,0.1822371,82637.0,82636.0,0.0695]
[1743285512573,0.303249,82637.0,82636.0,0.0695]
[1743285515870,0.664049,82637.0,82636.0,0.0695]
[1743285516280,1.073249,82637.0,82636.0,0.0695]
[1743285516881,0.712449,82637.0,82636.0,0.0695]
[1743285517282,1.073249,82637.0,82636.0,0.0695]
[1743285518175,0.712449,82637.0,82636.0,0.0695]
[1743285518376,1.073249,82637.0,82636.0,0.0695]
[1743285518978,1.21805955,82637.0,82636.0,0.0695]
[1743285519782,0.0605324,82632.0,82628.0,0.00018147]
[1743285519982,0.4818688,82629.0,82628.0,0.00018147]
[1743285520181,0.4825488,82629.0,82628.0,0.12189177]
[1743285521290,0.1217488,82629.0,82628.0,0.12189177]
[1743285521479,0.4825488,82629.0,82628.0,0.12189177]
[1743285521681,0.4825488,82629.0,82628.0,0.00582147]
[1743285521880,0.4825488,82629.0,82628.0,0.00518147]
[1743285521881,0.49498404,82629.0,82628.0,0.00518147]
[1743285522283,0.62514558,82629.0,82628.0,0.00518147]
[1743285522479,0.62514558,82629.0,82628.0,0.01018147]
[1743285522979,0.62514558,82629.0,82628.0,0.00818147]
[1743285523179,0.62514558,82629.0,82628.0,0.00318147]
[1743285523380,0.62714558,82629.0,82628.0,0.00318147]
[1743285523688,0.62914558,82629.0,82628.0,0.00018147]
[1743285525481,0.1210776,82623.0,82622.0,0.0626]
[1743285525675,0.1217576,82623.0,82622.0,0.06324]
[1743285526286,0.36070121,82623.0,82622.0,0.06324]
[1743285526488,0.1210908,82614.0,82613.0,0.0317]
[1743285526677,0.49221503,82614.0,82613.0,0.03246]
[1743285526877,0.49221496,82614.0,82613.0,0.03246]
[1743285527388,0.49221496,82614.0,82613.0,0.0317]
[1743285527591,0.56874969,82614.0,82613.0,0.0317]
[1743285529189,0.56874969,82614.0,82613.0,0.0327]
[1743285529381,0.56874969,82614.0,82613.0,0.0337]
[1743285529577,0.56874969,82614.0,82613.0,0.03434]
[1743285529788,0.56874969,82614.0,82613.0,0.09844]
[1743285530090,0.56883304,82614.0,82613.0,0.09844]
[1743285530681,0.20803304,82614.0,82613.0,0.09844]
[1743285532787,0.20803304,82614.0,82613.0,0.06674]
[1743285533091,0.20803304,82614.0,82606.0,0.0312]
[1743285533092,0.1211011,82607.0,82606.0,0.0312]
[1743285533393,0.13825479,82607.0,82606.0,0.0312]
[1743285533587,0.1211025,82606.0,82603.0,0.00048424]
[1743285533788,0.1211055,82604.0,82603.0,0.00048424]
[1743285533985,0.14815733,82604.0,82603.0,0.00048424]
[1743285534188,0.21275733,82604.0,82603.0,0.00048424]
[1743285534493,0.21950351,82604.0,82603.0,0.00048424]
[1743285535392,0.21650351,82604.0,82603.0,0.00048424]
[1743285536087,0.21550351,82604.0,82603.0,0.00048424]
[1743285536391,0.74576375,82604.0,82596.0,0.0312]
[1743285536590,0.1211157,82597.0,82596.0,0.03184]
[1743285536784,0.14824753,82597.0,82596.0,0.03184]
[1743285537294,0.15499371,82597.0,82596.0,0.03184]
[1743285537489,0.22049371,82597.0,82596.0,0.03184]
[1743285537684,0.22096194,82597.0,82596.0,0.03284]
[1743285537884,0.22096194,82597.0,82596.0,0.03384]
[1743285538285,0.22096194,82597.0,82596.0,0.39464]
[1743285539494,0.19412188,82597.0,82596.0,0.39464]
[1743285539685,0.2210221,82597.0,82596.0,0.39464]
[1743285540889,0.23293219,82597.0,82596.0,0.39464]
[1743285541495,0.23293219,82597.0,82596.0,0.03384]
[1743285541984,0.23293219,82597.0,82596.0,0.39464]
[1743285542590,0.23306284,82597.0,82596.0,0.39464]
[1743285542800,0.23307234,82597.0,82596.0,0.39464]
[1743285543586,0.59387234,82597.0,82596.0,0.00264]
[1743285543790,0.59387234,82597.0,82587.0,0.00048433]
[1743285543791,0.1211289,82588.0,82587.0,0.00048433]
[1743285543987,0.91568037,82588.0,82572.0,0.3608]
[1743285544187,0.1211524,82572.0,82571.0,0.00048443]
[1743285544394,0.1211524,82572.0,82548.0,0.0328]
[1743285544395,0.1211656,82563.0,82548.0,0.0328]
[1743285544593,0.1211759,82556.0,82542.0,0.3608]
[1743285544804,0.1211773,82555.0,82554.0,0.41144669]
[1743285545103,0.12946655,82555.0,82554.0,0.1211788]
[1743285545395,0.17501418,82555.0,82554.0,0.4826188]
[1743285545701,0.15396385,82555.0,82554.0,0.4826188]
[1743285545999,0.15096385,82555.0,82554.0,0.5460188]
[1743285546390,0.15196385,82555.0,82554.0,0.5460188]
[1743285546585,0.14521767,82555.0,82554.0,0.5460188]
[1743285546893,0.02304037,82555.0,82554.0,0.5460188]
[1743285547097,0.1211728,82559.0,82558.0,0.1211729]
[1743285547404,0.13301973,82559.0,82558.0,0.1218129]
[1743285547586,0.16311973,82559.0,82558.0,0.1852129]
[1743285547792,0.17006307,82559.0,82558.0,0.1852129]
[1743285548191,0.01879027,82559.0,82558.0,0.1852129]
[1743285548391,0.13996177,82559.0,82558.0,0.06404]
[1743285548602,0.50075058,82559.0,82558.0,0.06404]
[1743285548797,0.50075058,82559.0,82558.0,0.0634]
[1743285548991,0.56455058,82559.0,82558.0,0.0308]
[1743285549192,0.56655058,82559.0,82558.0,0.0308]
[1743285549394,0.56855058,82559.0,82558.0,0.0308]
[1743285555805,0.1211773,82555.0,82554.0,0.032]
[1743285556006,0.13305304,82555.0,82554.0,0.032]
[1743285556201,0.13999638,82555.0,82554.0,0.032]
[1743285556692,0.20249638,82555.0,82554.0,0.032]
[1743285556889,0.20349638,82555.0,82554.0,0.032]
[1743285557095,0.20449638,82555.0,82554.0,0.032]
[1743285560196,0.19414064,82555.0,82554.0,0.032]
[1743285560400,0.20386133,82555.0,82554.0,0.032]
[1743285561905,0.19691799,82555.0,82554.0,0.032]
[1743285563109,0.20354327,82555.0,82554.0,0.032]
[1743285563707,0.19691799,82555.0,82554.0,0.032]
[1743285564209,0.19691547,82555.0,82554.0,0.032]
[1743285564713,0.20354535,82555.0,82554.0,0.032]
[1743285564914,0.1211862,82549.0,82548.0,0.0308]
[1743285565119,0.13250437,82549.0,82548.0,0.06466]
[1743285565716,0.19650437,82549.0,82548.0,0.06466]
[1743285566113,0.19650437,82549.0,82548.0,0.06566]
[1743285566313,0.19650437,82549.0,82548.0,0.09876]
[1743285566914,0.20313837,82549.0,82548.0,0.09876]
[1743285567723,0.20313837,82549.0,82548.0,0.09976]
[1743285567918,0.19650437,82549.0,82548.0,0.09976]
[1743285568112,0.19650559,82549.0,82548.0,0.09976]
[1743285570421,0.20314977,82549.0,82548.0,0.09976]
[1743285572413,0.20314977,82549.0,82548.0,0.00276]
[1743285573910,0.20343884,82549.0,82548.0,0.00276]
[1743285574426,0.34824939,82549.0,82548.0,0.002]
[1743285574626,0.34824939,82549.0,82548.0,0.00264]
[1743285576025,0.34824939,82549.0,82548.0,0.002]
[1743285576222,0.34824939,82549.0,82548.0,0.00272]
[1743285578619,0.38635482,82549.0,82548.0,0.00272]
[1743285578919,0.44527798,82549.0,82548.0,0.00272]
[1743285579421,0.44527798,82549.0,82540.0,0.096]
[1743285579422,0.1211979,82541.0,82540.0,0.0325]
[1743285579628,0.1211994,82540.0,82539.0,0.00048462]
[1743285579825,0.22648115,82540.0,82539.0,0.00048462]
[1743285580026,0.121217,82528.0,82527.0,0.0626]
[1743285580321,0.1212185,82527.0,82526.0,0.28862077]
[1743285580529,0.22596024,82527.0,82526.0,0.28862077]
[1743285580822,0.22196024,82527.0,82526.0,0.28862077]
[1743285581012,0.24086931,82527.0,82526.0,0.28862077]
[1743285581517,0.24086931,82527.0,82526.0,0.29162077]
[1743285582827,0.23986931,82527.0,82526.0,0.29162077]
[1743285583219,0.23986931,82527.0,82526.0,0.28862077]
[1743285583425,0.1212229,82524.0,82520.0,0.033]
[1743285583716,0.13286464,82524.0,82520.0,0.033]
[1743285584223,0.13950882,82524.0,82520.0,0.033]
[1743285584613,0.13950882,82524.0,82521.0,0.0317]
[1743285585524,0.01828592,82524.0,82521.0,0.0317]
[1743285585730,0.0001817,82536.0,82532.0,0.1212111]
[1743285585926,0.1211966,82543.0,82542.0,0.121196]
[1743285586230,0.1224766,82543.0,82542.0,0.11864]
[1743285586627,0.1224766,82543.0,82542.0,0.18294]
[1743285587429,0.1244766,82543.0,82542.0,0.18294]
[1743285587928,0.1284766,82543.0,82542.0,0.18294]
[1743285588425,0.1284766,82543.0,82542.0,0.3041364]
[1743285588621,0.1284766,82543.0,82542.0,0.18294]
[1743285588825,0.1264766,82543.0,82542.0,0.18294]
[1743285589024,0.1294766,82543.0,82542.0,0.21504]
[1743285591024,0.1294766,82543.0,82542.0,0.09704]
[1743285596133,0.1911766,82543.0,82542.0,0.09704]
[1743285598433,0.19784293,82543.0,82542.0,0.09704]
[1743285600428,0.19784293,82543.0,82542.0,0.06534]
[1743285601232,0.19784293,82543.0,82542.0,0.00064]
[1743285601424,0.1212023,82538.0,82537.0,0.2392038]
[1743285601629,0.12240231,82538.0,82537.0,0.11864]
[1743285601831,0.12240231,82538.0,82537.0,0.00064]
[1743285602341,0.19206864,82538.0,82537.0,0.00064]
[1743285602545,0.19406864,82538.0,82537.0,0.00064]
[1743285602733,0.19606864,82538.0,82537.0,0.00064]
[1743285603242,0.19606864,82538.0,82537.0,0.1218438]
[1743285604937,0.19606864,82538.0,82537.0,0.00064]
[1743285606236,0.18940231,82538.0,82537.0,0.00064]
[1743285609438,0.55020231,82538.0,82537.0,0.00064]
[1743285609643,0.1212067,82535.0,82534.0,0.0001817]
[1743285609841,0.1226467,82535.0,82534.0,0.0001817]
[1743285610142,0.1212229,82524.0,82523.0,0.36128471]
[1743285610339,0.1212229,82524.0,82523.0,0.36192471]
[1743285610540,0.1226629,82524.0,82523.0,0.36192471]
[1743285611234,0.2179629,82524.0,82523.0,0.36192471]
[1743285611435,0.2298628,82524.0,82523.0,0.36192471]
[1743285611835,0.2298628,82524.0,82523.0,0.00112471]
[1743285612450,0.2298628,82524.0,82523.0,0.00212471]
[1743285612643,0.2298628,82524.0,82523.0,0.00312471]
[1743285613141,0.23654078,82524.0,82523.0,0.00312471]
[1743285613542,0.23654078,82524.0,82523.0,0.00248471]
[1743285615836,0.35771838,82524.0,82523.0,0.00248471]
[1743285616238,0.36726196,82524.0,82523.0,0.00248471]
[1743285617348,0.1212346,82516.0,82515.0,0.0001817]
[1743285617550,0.13213818,82516.0,82515.0,0.0015417]
[1743285617750,0.1212464,82508.0,82503.0,0.3608]
[1743285617941,0.13258999,82508.0,82501.0,0.1502]
[1743285618343,0.13928014,82508.0,82501.0,0.1502]
[1743285618553,0.20498014,82508.0,82501.0,0.1502]
[1743285619243,0.20498014,82508.0,82503.0,0.1212534]
[1743285619445,0.20498014,82508.0,82501.0,0.1502]
[1743285619446,0.20498014,82508.0,82501.0,0.4250122]
[1743285619842,0.20498014,82508.0,82501.0,0.3037561]
[1743285620243,0.19830216,82508.0,82501.0,0.3037561]
[1743285620549,0.20517246,82508.0,82501.0,0.4250122]
[1743285620749,0.20517246,82508.0,82502.0,0.1212549]
[1743285621145,0.20517246,82508.0,82501.0,0.5433]
[1743285621346,0.20517246,82508.0,82501.0,0.664556]
[1743285622244,0.20517246,82508.0,82501.0,0.4253]
[1743285622445,0.20517246,82508.0,82501.0,0.393]
[1743285623144,0.20517246,82508.0,82501.0,0.5142562]
[1743285623452,0.20517246,82508.0,82501.0,0.393]
[1743285625356,0.20507896,82508.0,82501.0,0.393]
[1743285625856,0.20507896,82508.0,82501.0,0.5142564]
[1743285626554,0.20507896,82508.0,82501.0,0.393]
[1743285626949,0.20507896,82508.0,82501.0,0.5142566]
[1743285627652,0.20507896,82508.0,82501.0,0.393]
[1743285628160,0.20513909,82508.0,82501.0,0.393]
[1743285629758,0.20513909,82508.0,82501.0,0.514256]
[1743285629961,0.20513909,82508.0,82501.0,0.393]
[1743285630160,0.20544817,82508.0,82501.0,0.393]
[1743285630362,0.20544817,82508.0,82501.0,0.0322]
[1743285630560,0.20544817,82508.0,82501.0,0.393]
[1743285631862,0.1212567,82501.0,82500.0,0.1]
[1743285632056,0.0606329,82495.0,82487.0,0.0309]
[1743285632260,0.1212699,82492.0,82482.0,0.0316]
[1743285632457,0.0606443,82480.0,82476.0,0.0625]
[1743285632654,0.1212919,82477.0,82476.0,0.0625]
[1743285632957,0.13298646,82477.0,82476.0,0.0941]
[1743285633257,0.13298646,82477.0,82476.0,0.0316]
[1743285633462,0.15203,82477.0,82476.0,0.0316]
[1743285633969,0.15178833,82477.0,82476.0,0.0316]
[1743285635873,0.15182257,82477.0,82476.0,0.0316]
[1743285637362,0.1212934,82476.0,82475.0,0.00048499]
[1743285637563,0.19538053,82476.0,82475.0,0.00048499]
[1743285637872,0.20214774,82476.0,82475.0,0.00048499]
[1743285639263,0.20314774,82476.0,82475.0,0.00048499]
[1743285641062,0.20414774,82476.0,82475.0,0.00048499]
[1743285641262,0.20614774,82476.0,82475.0,0.00048499]
[1743285642264,0.206145,82476.0,82475.0,0.00048499]
[1743285643664,0.206061,82476.0,82475.0,0.00048499]
[1743285644969,0.206061,82476.0,82475.0,0.48257989]
[1743285644970,0.0221676,82476.0,82475.0,0.48257989]
[1743285645168,0.02040759,82476.0,82475.0,0.48257989]
[1743285645370,0.0222076,82476.0,82475.0,0.48257989]
[1743285645569,0.02030166,82476.0,82475.0,0.48257989]
[1743285645763,0.02030166,82476.0,82475.0,0.54387989]
[1743285646368,0.02210167,82476.0,82475.0,0.54387989]
[1743285647376,0.00580001,82476.0,82475.0,0.54387989]
[1743285647971,0.004,82476.0,82475.0,0.54387989]
[1743285648775,0.002,82476.0,82475.0,0.54387989]
[1743285648967,0.1212894,82479.0,82478.0,0.1212905]
[1743285649173,0.12304941,82479.0,82478.0,0.1212905]
[1743285650976,0.12976146,82479.0,82478.0,0.1212905]
[1743285651367,0.13923002,82479.0,82478.0,0.1212905]
[1743285651568,0.14023002,82479.0,82478.0,0.1212905]
[1743285651768,0.17443002,82479.0,82478.0,0.1212905]
[1743285653378,0.16496146,82479.0,82478.0,0.1212905]
[1743285655571,0.17443528,82479.0,82478.0,0.1212905]
[1743285655773,0.05314588,82479.0,82478.0,0.1212905]
[1743285655976,0.01818587,82479.0,82478.0,0.1212905]
[1743285656276,0.01147382,82479.0,82478.0,0.1212905]
[1743285656477,0.002,82479.0,82478.0,0.1212905]
[1743285657373,0.001,82479.0,82478.0,0.1336438]
[1743285657965,0.1212635,82497.0,82484.0,0.1212817]
[1743285658181,0.0622,82495.0,82487.0,0.1212772]
[1743285658371,0.11010852,82488.0,82487.0,0.1212772]
[1743285659072,0.11010852,82488.0,82487.0,0.1520772]
[1743285659680,0.00176001,82488.0,82487.0,0.1520772]
[1743285659874,0.14054851,82490.0,82489.0,0.1212743]
[1743285660174,0.14234852,82490.0,82489.0,0.1212743]
[1743285660765,0.14906251,82490.0,82489.0,0.1212743]
[1743285662077,0.27033531,82490.0,82489.0,0.1212743]
[1743285662478,0.27988751,82490.0,82489.0,0.1212743]
[1743285662679,0.1715388,82490.0,82489.0,0.1212743]
[1743285663282,0.1725388,82490.0,82489.0,0.1212743]
[1743285664083,0.1735388,82490.0,82489.0,0.1212743]
[1743285664279,0.052266,82490.0,82489.0,0.1212743]
[1743285664483,0.05422732,82490.0,82489.0,0.1212743]
[1743285664879,0.08542732,82490.0,82489.0,0.1212743]
[1743285665278,0.02022731,82490.0,82489.0,0.1212743]
[1743285665579,0.10853032,82496.0,82495.0,0.1212655]
[1743285665787,0.11029033,82496.0,82495.0,0.6001055]
[1743285666579,0.11029033,82496.0,82495.0,0.6637055]
[1743285667278,0.11329033,82496.0,82495.0,0.6637055]
[1743285667583,0.0626,82508.0,82503.0,0.1212537]
[1743285667888,0.37312699,82518.0,82503.0,0.1212537]
[1743285667889,0.00124001,82504.0,82503.0,0.4832937]
[1743285668074,0.18058086,82505.0,82503.0,0.4832937]
[1743285668075,0.18058086,82505.0,82504.0,0.1212523]
[1743285668280,0.18194086,82505.0,82504.0,0.2400123]
[1743285668582,0.18194086,82505.0,82504.0,0.34974025]
[1743285670176,0.18194086,82505.0,82504.0,0.35374025]
[1743285672479,0.18194086,82505.0,82504.0,0.71454025]
[1743285672683,0.18194086,82505.0,82504.0,1.07534025]
[1743285672876,0.00136,82505.0,82504.0,1.07534025]
[1743285673079,0.0626,82509.0,82508.0,0.1212464]
[1743285673289,0.0626,82509.0,82508.0,0.1219264]
[1743285673987,0.0626,82509.0,82508.0,0.1519264]
[1743285674188,0.0626,82509.0,82508.0,0.1529264]
[1743285674985,0.0626,82509.0,82508.0,0.1229264]
[1743285675984,0.0626,82509.0,82508.0,0.1219264]
[1743285676385,0.0626,82509.0,82508.0,0.4827264]
[1743285677787,0.0626,82509.0,82508.0,0.4847264]
[1743285678602,0.0626,82509.0,81865.0,0.15111654]
[1743285678603,0.1212625,82498.0,82495.0,0.57843243]
[1743285678891,0.1212625,82497.0,82496.0,0.00082181]
[1743285679083,0.121264,82496.0,82495.0,0.16275424]
[1743285679286,0.1212684,82493.0,82492.0,0.01935]
[1743285679589,0.4817084,82493.0,82492.0,1e-08]
[1743285679791,0.1212787,82486.0,82476.0,0.12715788]
[1743285680088,0.4817187,82486.0,82476.0,0.00915788]
[1743285680287,0.4797187,82486.0,82477.0,0.00018181]
[1743285680490,0.4767187,82486.0,82477.0,0.00018181]
[1743285680683,0.48618165,82486.0,82477.0,0.00018181]
[1743285680883,0.48618165,82486.0,82480.0,0.55467719]
[1743285681084,0.49289851,82486.0,82485.0,0.36834277]
[1743285681580,0.49289851,82486.0,82485.0,0.005]
[1743285681581,0.48343556,82486.0,82485.0,0.005]
[1743285682586,0.48343556,82486.0,82485.0,0.1212802]
[1743285682790,0.49143556,82486.0,82485.0,0.1212802]
[1743285683094,0.52633556,82486.0,82485.0,0.1212802]
[1743285683294,0.5196187,82486.0,82485.0,0.1915802]
[1743285684297,0.5196187,82486.0,82485.0,0.0364]
[1743285685285,0.1212861,82481.0,82480.0,0.2392873]
[1743285685596,0.1229261,82481.0,82480.0,0.2392873]
[1743285696103,0.121289,82479.0,82478.0,0.0343]
[1743285696303,0.123049,82479.0,82478.0,0.0343]
[1743285696694,0.123049,82479.0,82478.0,0.1555905]
[1743285696695,0.138349,82479.0,82478.0,0.1555905]
[1743285697002,0.18438318,82479.0,82478.0,0.1555905]
[1743285697202,0.18438318,82479.0,82478.0,0.1565905]
[1743285700104,0.16908318,82479.0,82478.0,0.1565905]
[1743285700408,0.01129418,82479.0,82478.0,0.1565905]
[1743285700597,0.18058086,82501.0,82478.0,0.1565905]
[1743285700598,0.18058086,82501.0,82494.0,0.0606333]
[1743285700804,0.18170087,82501.0,82500.0,0.1212581]
[1743285701007,0.18170087,82501.0,82500.0,0.1218981]
[1743285701807,0.18470087,82501.0,82500.0,0.1218981]
[1743285702203,0.07830087,82501.0,82500.0,0.1218981]
[1743285702605,0.08030087,82501.0,82500.0,0.1218981]
[1743285703311,0.07530087,82501.0,82500.0,0.1218981]
[1743285703502,0.07630087,82501.0,82500.0,0.1218981]
[1743285703703,0.00712001,82501.0,82500.0,0.1218981]
[1743285703909,0.006,82501.0,82500.0,0.1218981]
[1743285704310,0.00018181,82509.0,82508.0,0.1212464]
[1743285704512,0.00138182,82509.0,82508.0,0.2399264]
[1743285704701,0.00018181,82509.0,82508.0,0.2399264]
[1743285705610,0.00218181,82509.0,82508.0,0.2399264]
[1743285705811,0.00218181,82509.0,82508.0,0.2758264]
[1743285706215,0.00418181,82509.0,82508.0,0.2758264]
[1743285706909,0.00534181,82509.0,82508.0,0.2758264]
[1743285707211,0.00418181,82509.0,82508.0,0.2758264]
[1743285707407,0.4214115,82524.0,82523.0,0.1212243]
[1743285707601,0.42253151,82524.0,82523.0,0.1218643]
[1743285708508,0.42253151,82524.0,82523.0,0.1569643]
[1743285708709,0.42753151,82524.0,82523.0,0.1905643]
[1743285709116,0.4392424,82524.0,82523.0,0.1915643]
[1743285712214,0.0784424,82524.0,82523.0,0.1915643]
[1743285714014,0.1151424,82524.0,82523.0,0.1915643]
[1743285715518,0.0178309,82524.0,82523.0,0.1915643]
[1743285715717,0.00058181,82532.0,82531.0,0.1212126]
[1743285715916,0.12259291,82532.0,82531.0,0.1218926]
[1743285716117,0.00218181,82532.0,82531.0,0.1911926]
[1743285716415,0.00138181,82532.0,82531.0,0.1911926]
[1743285716621,0.00138181,82532.0,82531.0,0.3091526]
[1743285717320,0.12659291,82532.0,82531.0,0.3091526]
[1743285717520,0.12655291,82532.0,82531.0,0.3091526]
[1743285717916,0.13155291,82532.0,82531.0,0.3101526]
[1743285718312,0.01034181,82532.0,82531.0,0.3101526]
[1743285718517,0.01034181,82532.0,82531.0,0.68309019]
[1743285718718,0.00958181,82532.0,82531.0,0.6709526]
[1743285720320,0.13079291,82532.0,82531.0,0.6709526]
[1743285721530,0.13155291,82532.0,82531.0,0.6709526]
[1743285722333,0.13155291,82532.0,82531.0,0.3101526]
[1743285722519,0.13155291,82532.0,82531.0,0.6709526]
[1743285724128,0.13155291,82532.0,82529.0,0.0606071]
[1743285724129,0.40864181,82532.0,82514.0,0.3608]
[1743285724327,0.1212229,82524.0,82521.0,0.0707]
[1743285724526,0.1222229,82524.0,82521.0,0.0707]
[1743285724835,0.1222229,82524.0,82523.0,0.12204611]
[1743285725222,0.1954229,82524.0,82523.0,0.12204611]
[1743285725423,0.1954229,82524.0,82523.0,0.00082181]
[1743285725729,0.2004229,82524.0,82523.0,0.12204611]
[1743285726930,0.2044229,82524.0,82523.0,0.12204611]
[1743285729727,0.1994229,82524.0,82523.0,0.12204611]
[1743285730039,0.2014229,82524.0,82523.0,0.12204611]
[1743285730224,0.2014229,82524.0,82523.0,0.19164611]
[1743285730426,0.006,82524.0,82523.0,0.19164611]
[1743285730628,0.005,82524.0,82523.0,0.55244611]
[1743285730825,0.0372,82535.0,82531.0,0.1212126]
[1743285731027,0.00158181,82532.0,82531.0,0.2255526]
[1743285731227,0.12279291,82532.0,82531.0,0.2255526]
[1743285732332,0.00158181,82532.0,82531.0,0.2255526]
[1743285732639,0.00558181,82532.0,82531.0,0.2255526]
[1743285733620,0.00758181,82532.0,82531.0,0.2255526]
[1743285735733,0.12879291,82532.0,82531.0,0.2255526]
[1743285736235,0.00758181,82532.0,82531.0,0.2255526]
[1743285736635,0.00658181,82532.0,82531.0,0.2255526]
[1743285738132,0.00766181,82532.0,82531.0,0.2255526]
[1743285739243,0.14482189,82537.0,82536.0,0.1212052]
[1743285739440,0.14582189,82537.0,82536.0,0.2398052]
[1743285739936,0.001,82537.0,82536.0,0.2398052]
[1743285740144,0.14482189,82542.0,82541.0,0.1211979]
[1743285740331,0.14582189,82542.0,82541.0,0.4826379]
[1743285741045,0.14582189,82542.0,82541.0,0.5565379]
[1743285742738,0.26701829,82542.0,82541.0,0.00064]
[1743285742937,0.1212111,82532.0,82531.0,0.0377]
[1743285743245,0.12245111,82532.0,82531.0,0.03886]
[1743285743645,0.12245111,82532.0,82531.0,0.07616]
[1743285743842,0.19245111,82532.0,82531.0,0.00116]
[1743285744240,0.19245111,82532.0,82531.0,0.1223726]
[1743285745138,0.07124001,82532.0,82531.0,0.4831726]
[1743285745337,0.1912111,82532.0,82531.0,0.4831726]
[1743285745542,0.19241111,82532.0,82531.0,0.5577726]